Cogmind - Beta 15 @@@ ROGUE MODE // 2025.06.22 @ 15:23:47 Player: McSaucyNugget Result: Destroyed by MU-L6H(R) with Subdweller Machine Gun Performance ------------- Evolutions (0) 0 Regions Visited (2) 400 Robots Destroyed (9) 45 Value Destroyed (136) 136 Prototype IDs (0) 0 Alien Tech Used (0) 0 Bonus (0) 0 TOTAL SCORE: 581 Bonus ------- None Cogmind --------- Core Integrity 0/250 Matter 247/300 Energy 100/100 System Corruption 0% Temperature Cool (0) Movement Core (400) Ox7 Location -10/Subcaves Parts ------- > --- POWER (1) -------- (None) > --- PROPULSION (2) --- (None) > --- UTILITY (2) ------ Large Storage Unit > --- WEAPON (2) ------- Light Assault Rifle Light Assault Rifle > --- INVENTORY (15) --- Light Ion Engine Light Treads Light Treads Light Treads Huge Storage Unit Sensor Array Signal Interpreter EM Pulse Gun Mining Laser Peak State ------------ > --- POWER ------------ Ion Engine > --- PROPULSION ------- Wheel Compact Wheel > --- UTILITY ---------- Small Storage Unit Large Storage Unit > --- WEAPON ----------- Medium Laser Light Assault Rifle > --- INVENTORY -------- Light Ion Engine Light Treads Light Treads EM Pulse Gun [Rating: 7] Favorites ----------- Power Ion Engine Engine Ion Engine Propulsion Wheel Wheel Wheel Utility Huge Storage Unit Storage Huge Storage Unit Weapon Medium Laser Energy Gun Medium Laser Ballistic Gun Light Assault Rifle Special Weapon Mining Laser Build | -11 -10 -10 ------- Run | Yrd Mat Sub Slots Evolved . | . . . Power . | . . . Propulsion . | . . . Utility . | . . . Weapon . | . . . Parts Attached 12 | 6 3 3 Power 1 | 1 . . Engine 1 | 1 . . Core . | . . . Reactor . | . . . Propulsion 3 | 2 . 1 Treads . | . . . Leg . | . . . Wheel 3 | 2 . 1 Hover . | . . . Flight . | . . . Utility 3 | 1 2 . Device . | . . . Storage 3 | 1 2 . Processor . | . . . Hackware . | . . . Protection . | . . . Artifact . | . . . Weapon 5 | 2 1 2 Energy Gun 1 | 1 . . Energy Cannon . | . . . Ballistic Gun 3 | 1 . 2 Ballistic Cannon . | . . . Launcher . | . . . Special Weapon 1 | . 1 . Impact Weapon . | . . . Slashing Weapon . | . . . Piercing Weapon . | . . . Special Melee Weapon . | . . . Unidentified Prototypes . | . . . Parts Lost 6 | . . 6 Power 1 | . . 1 Propulsion 3 | . . 3 Utility . | . . . Weapon 2 | . . 2 Highest Loss Streak 4 | . . 4 To Critical Strikes . | . . . Average Backups 7 | 2 6 11 Power . | . 1 1 Propulsion 2 | 1 2 3 Utility 1 | . 1 3 Weapon 2 | . 1 3 Tool/Special . | . . . Unused Backups 7 | . . 7 Power 1 | . . 1 Propulsion 3 | . . 3 Utility 2 | . . 2 Weapon 1 | . . 1 Tool/Special . | . . . Average Slot Usage (%) 83 | . 85 78 Engine 14 | . 14 14 Wheel 26 | . 28 21 Storage 14 | . 14 14 Energy Gun 13 | . 14 12 Ballistic Gun 12 | . 12 12 Special Weapon 1 | . 1 2 Peak Build Rating 7 | 6 7 7 Average Rating 6 | 4 6 6 On Entrance 4 | . 6 7 Naked Turns . | . . . Heaviest Build 88 | 13 88 88 Greatest Support 26 | 26 26 26 Greatest Overweight (x) 5 | . 3 5 Average Overweight (x) 1 | . 1 2 Largest Inventory Capacity 25 | 8 25 25 Average Capacity 19 | 6 19 21 Most Carried 12 | 4 11 12 Average Carried 7 | 2 6 11 Final Capacity 25 | 8 25 15 Final Carried 11 | 4 11 9 Class Distribution -------------------- 100% | Mutant Dominant Class ---------------- Mutant | -10/Materials Mutant | -10/Subcaves Resources | -11 -10 -10 ----------- Run | Yrd Mat Sub Matter Collected 298 | 250 48 . Remotely . | . . . Salvage Created 177 | . 68 109 Parts 18 | . 7 11 Haulers Intercepted . | . . . Recyclers Shooed . | . . . Parts Field Recycled . | . . . Retrieved Matter . | . . . Parts Self-Destructed 8 | . . 8 Prevented . | . . . Kills | -11 -10 -10 ------- Run | Yrd Mat Sub Combat Hostiles Destroyed 8 | . 3 5 Guns 8 | . 3 5 Classes Destroyed 3 | . 2 1 Watcher 1 | . 1 . Swarmer 7 | . 3 4 Subdweller 1 | . . 1 Best Kill Streak 4 | . 4 4 Combat Bots Only 4 | . 3 4 Max Kills in Single Turn 2 | . 2 1 Gunslinging 1 | . 1 . Exploded . | . . . Melee . | . . . Uniques/NPCs Destroyed . | . . . Combat | -11 -10 -10 -------- Run | Yrd Mat Sub Hostile Shots Fired 56 | . 4 52 Missed 12 | . 1 11 Hits 44 | . 3 41 Projectile 44 | . 3 41 Damage Taken 783 | . 36 747 Core 260 | . 19 241 Absorbed by Shields . | . . . Core Remaining (%) 100 | 100 . . Volleys Fired 40 | . 15 25 Largest 2 | . 2 2 Hottest 100 | . 100 70 Shots Fired 74 | . 25 49 Gun 69 | . 20 49 Cannon . | . . . Launcher . | . . . Special 5 | . 5 . Kinetic 41 | . 10 31 Thermal 33 | . 15 18 Explosive . | . . . Electromagnetic . | . . . Robot Hit Streak 12 | . 6 12 Robot Miss Streak 4 | . 4 4 Penetration Max . | . . . Secondary Targets 2 | . 1 1 Max Gunslinging Chain 1 | . 1 1 Shots Hit Robots 49 | . 9 40 Core Hits 13 | . 5 8 Critical Kills . | . . . Critical Parts Destroyed . | . . . Critical Strikes 3 | . . 3 Burn 3 | . . 3 Melee Attacks . | . . . Impact . | . . . Slashing . | . . . Piercing . | . . . Sneak Attacks . | . . . Combat Hostiles . | . . . Follow-up Attacks . | . . . Damage Inflicted 499 | . 99 400 Guns 499 | . 99 400 Cannons . | . . . Explosions . | . . . Melee . | . . . Ramming . | . . . Kinetic 235 | . 36 199 Thermal 264 | . 63 201 Explosive . | . . . Electromagnetic . | . . . Impact . | . . . Slashing . | . . . Piercing . | . . . Highest Corruption . | . . . Average Corruption . | . . . Corruption Purged . | . . . Corruption Blocked . | . . . Overload Shots . | . . . Overflow Damage . | . . . Projectiles . | . . . Explosions . | . . . Melee . | . . . Knockbacks . | . . . Impact . | . . . Kinetic . | . . . Secondary . | . . . Self-Inflicted Damage . | . . . Shots . | . . . Rammed . | . . . Targets Rammed . | . . . Kicked . | . . . Crushed . | . . . Highest Temperature 100 | . 100 . Average Temperature 33 | . 33 . Received Heat Transfer . | . . . Siege Activations . | . . . Martial Activations . | . . . Shielding Activations . | . . . Robots Disrupted . | . . . Combat Hostiles . | . . . Robots Corrupted . | . . . Combat Hostiles . | . . . Parts Fried . | . . . Impact Corruptions . | . . . Robots Melted . | . . . Combat Hostiles . | . . . Parts Melted 1 | . . 1 Heat Transferred 999 | . 185 814 Parts Sabotaged . | . . . Parts Stolen . | . . . Parts Stripped . | . . . Power Chain Reactions . | . . . Alert | -11 -10 -10 ------- Run | Yrd Mat Sub Maximum Alert Level . | . . . Low Security (%) 100 | 100 100 . Level 1 . | . . . Level 2 . | . . . Level 3 . | . . . Level 4 . | . . . Level 5 . | . . . High Security . | . . . Max Security . | . . . Peak Influence 87 | . 87 . Initial . | . . . Average 14 | . 16 . Influence Increases 304 | . 134 170 Destroy 0b10 Robot/C 140 | . 60 80 Destroy 0b10 Robot/NC 5 | . 5 . Destroy Leader 22 | . 22 . Disable Machine 15 | . 15 . Destroy Structure 2 | . 2 . Lose Combat Pursuer 120 | . 30 90 Influence Decreases 294 | . 134 160 Time Decay 234 | . 134 100 Lost Part 60 | . . 60 Squads Dispatched 1 | . 1 . Investigation . | . . . Extermination . | . . . Reinforcement 1 | . 1 . Assault . | . . . Garrison . | . . . Intercept . | . . . Searches Triggered . | . . . Construction Impeded . | . . . Haulers Reinforced . | . . . Active Scanning Responses . | . . . Cargo Convoy Interrupts . | . . . Stealth | -11 -10 -10 --------- Run | Yrd Mat Sub Distress Signals 1 | . 1 . Communications Jammed . | . . . Distress Signals . | . . . Times Spotted 20 | . 12 8 Peak Tracking Total 7 | . 7 6 Tactical Retreats 3 | . 1 2 Traps | -11 -10 -10 ------- Run | Yrd Mat Sub Traps Triggered . | . . . Indirectly . | . . . Trap Hack Attempts . | . . . Triggered . | . . . Disarmed . | . . . Reprogrammed . | . . . Reused . | . . . Traps Extracted . | . . . Installed . | . . . Triggered . | . . . Machines | -11 -10 -10 ---------- Run | Yrd Mat Sub Machines Disabled 1 | . 1 . Max in Single Turn 1 | . 1 . Machines Repaired . | . . . Machines Dismantled . | . . . Machines Sabotaged . | . . . Overloaded Fab Kills . | . . . Hacking | -11 -10 -10 --------- Run | Yrd Mat Sub Machines Accessed . | . . . Terminals . | . . . Fabricators . | . . . Repair Stations . | . . . Recycling Units . | . . . Scanalyzers . | . . . Garrison Access . | . . . Total Hacks . | . . . Successful . | . . . Failed . | . . . Catastrophic . | . . . Database Lockouts . | . . . Manual . | . . . Terminals . | . . . Fabricators . | . . . Repair Stations . | . . . Recycling Units . | . . . Scanalyzers . | . . . Garrison Access . | . . . Terminal Hacks . | . . . Fabricator Hacks . | . . . Repair Station Hacks . | . . . Recycling Unit Hacks . | . . . Scanalyzer . | . . . Garrison Access Hacks . | . . . Unauthorized Hacks . | . . . Terminals . | . . . Fabricators . | . . . Repair Stations . | . . . Recycling Units . | . . . Scanalyzers . | . . . Garrison Access . | . . . Data Cores Recovered . | . . . Used . | . . . Hacking Detections . | . . . Full Trace Events . | . . . Feedback Events . | . . . Feedback Blocked . | . . . Robot Schematics Acquired . | . . . Robots Built . | . . . Authchips . | . . . Time . | . . . Total Robot Build Rating . | . . . Part Schematics Acquired . | . . . Parts Built . | . . . Authchips . | . . . Time . | . . . Total Part Build Rating . | . . . Parts Repaired . | . . . Time . | . . . Parts Recycled . | . . . Recycled Matter . | . . . Retrieved Matter . | . . . Retrieved Components . | . . . Parts Scanalyzed . | . . . Part Schematics Acquired . | . . . Parts Damaged . | . . . Bothacking | -11 -10 -10 ------------ Run | Yrd Mat Sub Used RIF Installer . | . . . Robots Hacked . | . . . Non-combat . | . . . Combat . | . . . Robot Hacks Applied . | . . . Relay Couplers Released . | . . . Fabnet Peak Effective % . | . . . Robots Rewired . | . . . Allies Hacked . | . . . Hacks Repelled . | . . . Allies | -11 -10 -10 -------- Run | Yrd Mat Sub Total Allies . | . . . Largest Group . | . . . Highest-Rated Group . | . . . Highest-Rated Ally . | . . . Total Orders . | . . . Ally Attacks . | . . . Total Damage . | . . . Kills . | . . . Allies Corrupted . | . . . Allies Melted . | . . . Intel | -11 -10 -10 ------- Run | Yrd Mat Sub Active Infowar (turns) . | . . . Robot Analysis Total . | . . . Derelict Logs Recovered 1 | . . 1 Drone Launches . | . . . Drone Recoveries . | . . . Exploration | -11 -10 -10 ------------- Run | Yrd Mat Sub Turns Passed 823 | 60 534 229 Spaces Moved 564 | 54 401 109 Core 3 | 3 . . Treads . | . . . Legs . | . . . Wheels 561 | 51 401 109 Hover . | . . . Flight . | . . . Fastest Speed 50 | 50 90 105 Average Speed 118 | 88 118 130 Slowest Speed 175 | 100 135 175 Overloaded Moves . | . . . Propulsion Burnouts . | . . . Robots Hopped . | . . . Potential Cave-ins . | . . . Cave-ins Triggered . | . . . Exploration Rate (%) 25 | 4 65 8 Regions Visited 2 Branch Regions 1 Pre-discovered Areas . | . . . Known Exits Taken . | . . . Unknown Exits Taken 2 | 1 1 . Scrap Searched . | . . . Spaces Dug . | . . . Terrain Destroyed 3 | . 3 . Melee . | . . . Projectile 3 | . 3 . AOE . | . . . Terrain Rammed . | . . . Walls Destroyed . | . . . Machines Disabled . | . . . Actions | -11 -10 -10 --------- Run | Yrd Mat Sub Total 642 | 63 427 152 Wait 12 | . . 12 Move 562 | 53 400 109 Hop . | . . . Pick Up 11 | 4 6 1 Fast Attach 8 | 6 2 . Attach 3 | . . 3 Detach 2 | . 2 . Swap 3 | . 1 2 Drop 1 | . 1 . Fire 40 | . 15 25 Melee . | . . . Ram . | . . . Kick . | . . . Crush . | . . . Escape Stasis . | . . . Rewire . | . . . Trap . | . . . Miscellaneous . | . . . Route ------- -11/Scrapyard -10/Materials (discovered 4 exits: [*Mat x2] / [*Min] / [*Sub]) -10/Subcaves History --------- Turn | Location | Event 5 | -11/Scrapyard | Discovered new exit (range 15) 61 | -11/Scrapyard | Entered Materials 62 | -10/Materials | Met a group of wandering Federalists 80 | -10/Materials | Discovered new exit (range 14) 285 | -10/Materials | Discovered new exit (range 8) 301 | -10/Materials | Build established: Mutant 324 | -10/Materials | Discovered new exit (range 11) 548 | -10/Materials | Discovered new exit (range 14) 595 | -10/Materials | Entered Subcaves 596 | -10/Subcaves | Continued accompanying wandering Federalists (2) 600 | -10/Subcaves | Learned location of 1 exit from Materials 752 | -10/Subcaves | Core integrity fell below 50% 815 | -10/Subcaves | Core integrity fell below 20% 824 | -10/Subcaves | Destroyed by MU-L6H(R) with Subdweller Machine Gun Last Messages --------------- 00630_ S-10 Pest destroyed. 00630_ Switching to secondary target: S-10 Pest. 00632_ Flight Unit fries itself beyond repair. 00632_ S-10 Pest destroyed. 00633_ Lgt. Assault Rifle fries itself beyond repair. 00634_ Subatomizers dissect the Flight Unit. 00635_ Flight Unit fries itself beyond repair. 00641_ S-10 Pest destroyed. 00645_ Flight Unit fries itself beyond repair. 00645_ Acquired Lgt. Assault Rifle. 00648_ Lgt. Assault Rifle fries itself beyond repair. 00741_ Wheel destroyed. 00754_ Com. Wheel destroyed. 00788_ Wheel destroyed. 00792_ ZV-DS5(R) suffers critical hit (Burn). 00800_ Lgt. Assault Rifle destroyed. 00803_ Disposable Heat Sink melted. 00803_ ZV-DS5(R) destroyed. 00804_ Med. Laser destroyed. 00822_ Ion Engine destroyed. Map ----- +----------------------------------------------------+ | ?????????????????????????####????????????????????? | | ?????????????????????????# ##???????????????????? | | ?????????????????????????# #??#####?#####??????? | | ?????????????????????##### #### #?# #??????? | | ?????????????????????# ## #?# #??????? | | ?????????????????????# ### #?######? | | ?????????????????????# ## ### #? | | ????????????????????## ## ## ## | | ????????????????????# # # | | ???????????????????## # # | | ???????????????????# ## | | ???????????????????###% ### | | ?????????????????????#%# #?# | | ????????????????????#%### ## #?## | | ???????????????????# ??### ### #??## | | ?????????????????? ????# ##?# #??# | | ????????????????? ????# ##??# #??# | | ????????????????# ????# #???### #??## | | ????????????????#" ????# ## ##??????##???## | | ????????????????#" ?"?????##### ##????????????# | | ????????????????#""?"?????????### ### ##???????? | | ????????????????##?##?????????### #???????? | | ???????????????????????###???## #???????? | | ??????????????????????## ##### ####???????? | | ??????????????????????# !R* #####??????????? | | ??????????????????????## @## ##??????????????? | | ???????????????????????##### #???????????????? | | ???????????????????????????# #???????????????? | | ???????????????????????????## ##???????????????? | | ????????????????????????????#####????????????????? | | ?????????????????????????????????????????????????? | | ?????????????????????????????????????????????????? | | ?????????????????????????????????????????????????? | | ?????????????????????????????????????????????????? | | ?????????????????????????????????????????????????? | | ?????????????????????????????????????????????????? | | ?????????????????????????????????????????????????? | | ?????????????????????????????????????????????????? | | ?????????????????????????????????????????????????? | | ?????????????????????????????????????????????????? | | ?????????????????????????????????????????????????? | | ?????????????????????????????????????????????????? | | ?????????????????????????????????????????????????? | | ?????????????????????????????????????????????????? | | ?????????????????????????????????????????????????? | | ?????????????????????????????????????????????????? | | ?????????????????????????????????????????????????? | | ?????????????????????????????????????????????????? | | ?????????????????????????????????????????????????? | | ?????????????????????????????????????????????????? | +----------------------------------------------------+ Best States ------------- Heat Dissipation 25 Energy Generation 10 Energy Capacity 250 Matter Stores 300 Matter Capacity 300 Sight Range 16 Terrain Scan Density 10 Evasion (%) 42 Item Schematics ----------------- None Robot Schematics ------------------ None Fabricated ------------ Nothing Repaired ---------- Nothing Alien Tech Used ----------------- None Achievements -------------- None Challenges ------------ None Game ------ Seed DecoyVampiricRigger Manual? 0 Play Time 00:07:38 Cumulative 92.1 hours Start 2025.06.22 @ 15:17:27 End 2025.06.22 @ 15:23:47 Sessions 1 Manual Loads 0 Difficulty Rogue Special Mode None Game No. 62 Rogue 62 Adventurer 0 Explorer 0 Win Type - Total 8 Types 2/1/2/1/1/0/0/0/0/1 Lore% 57 Gallery% 56 Achievement% 59 Wizard Run 0 Options --------- Layout 0 ASCII 0 Keyboard 1 Movement Vi Keybinds 0 Fullscreen 2 Font 18/SmallcapsGlow Map View 76x50 Zoom Use 0% Tactical HUD 1 Map Filters NONE Filters NONE Steam 1 RUN: 03e9bb49-9444-42ff-9687-29ab4a1af267